fUSD/lending_fUSD_20240612
["ID","MTS","AMOUNT","RATE_DAILY","PERIOD"]
[329232078,1718191873924,-150.0,0.00021726,2]
[329232079,1718191873935,-150.0,0.00021729,2]
[329232080,1718191873946,-150.0,0.0002173,2]
[329232081,1718191873957,-150.0,0.0002173,2]
[329232082,1718191873968,-150.0,0.00021737,2]
[329232083,1718191873979,-7587.97,0.00021741,2]
[329232084,1718191873990,-30019.80996099,0.00021742,2]
[329232085,1718191874001,-150.0,0.00021742,2]
[329232086,1718191874012,-150.0,0.00021757,2]
[329232087,1718191874023,-150.0,0.00021758,2]
[329232088,1718191874034,-150.0,0.00021763,2]
[329232089,1718191874045,-1018.41,0.00021778,2]
[329232090,1718191874056,-579.55,0.00021778,2]
[329232091,1718191874067,-500.0,0.00021778,2]
[329232092,1718191874077,-569.48,0.00021778,2]
[329232093,1718191874089,-500.0,0.00021778,2]
[329232094,1718191874101,-1114.44,0.00021778,2]
[329232095,1718191874113,-347.92632679,0.00021778,2]
[329232096,1718191874124,-500.0,0.00021778,2]
[329232097,1718191874136,-500.0,0.00021778,2]
[329232098,1718191874146,-906.12,0.00021778,2]
[329232099,1718191874161,-500.0,0.00021778,2]
[329232100,1718191874173,-615.56,0.00021778,2]
[329232101,1718191874185,-2673.62,0.00021778,2]
[329232102,1718191874199,-570.29,0.00021779,2]
[329232103,1718191874211,-1063.22,0.00021779,2]
[329232104,1718191874221,-789.87,0.00021779,2]
[329232105,1718191874234,-1095.74,0.00021779,2]
[329232106,1718191874244,-500.0,0.00021779,2]
[329232107,1718191874256,-500.0,0.00021779,2]
[329232108,1718191874267,-2101.54,0.00021779,2]
[329232109,1718191874277,-811.23,0.00021779,2]
[329232110,1718191874289,-370.1451109,0.00021779,2]
[329232111,1718191874299,-760.02,0.00021779,2]
[329232112,1718191874310,-594.76,0.00021779,2]
[329232113,1718191874322,-500.0,0.00021779,2]
[329232114,1718191874334,-500.0,0.00021779,2]
[329232115,1718191874345,-770.31,0.00021779,2]
[329232116,1718191874360,-865.1,0.00021779,2]
[329232117,1718191874396,-1731.15,0.00021779,2]
[329232118,1718191874409,-1365.74,0.00021779,2]
[329232119,1718191874420,-500.0,0.00021779,2]
[329232120,1718191874432,-296.34252145,0.00021779,2]
[329232121,1718191874444,-742.33,0.00021779,2]
[329232122,1718191874454,-776.13,0.0002178,2]
[329232123,1718191874465,-533.84,0.0002178,2]
[329232124,1718191874477,-224.36112358,0.0002178,2]
[329232125,1718191874489,-512.57,0.0002178,2]
[329232126,1718191874500,-588.83,0.0002178,2]
[329232127,1718191874511,-500.0,0.0002178,2]
[329232128,1718191874522,-500.0,0.0002178,2]
[329232129,1718191874532,-651.23,0.0002178,2]
[329232130,1718191874543,-727.91,0.0002178,2]
[329232131,1718191874553,-500.0,0.0002178,2]
[329232132,1718191874565,-500.0,0.0002178,2]
[329232133,1718191874576,-500.0,0.0002178,2]
[329232134,1718191874587,-588.04,0.0002178,2]
[329232135,1718191874598,-544.64,0.0002178,2]
[329232136,1718191874611,-1242.63,0.0002178,2]
[329232137,1718191874622,-1281.97,0.0002178,2]
[329232138,1718191874633,-2260.06,0.0002178,2]
[329232139,1718191874644,-500.0,0.0002178,2]
[329232140,1718191874656,-500.0,0.0002178,2]
[329232141,1718191874666,-239.964098,0.0002178,2]
[329232142,1718191874678,-1500.0,0.00021786,2]
[329232143,1718191874688,-150.0,0.00021787,2]
[329232144,1718191874699,-150.0,0.00021792,2]
[329232145,1718191874709,-150.0,0.00021794,2]
[329232146,1718191874722,-150.0,0.00021797,2]
[329232147,1718191874733,-150.0,0.00021798,2]
[329232148,1718191874744,-154.59154198,0.000218,2]
[329232149,1718191874754,-150.0,0.00021803,2]
[329232150,1718191874765,-150.0,0.00021807,2]
[329232151,1718191874776,-155.92281657,0.00021815,2]
[329232152,1718191874787,-150.0,0.0002182,2]
[329232153,1718191874797,-150.0,0.00021828,2]
[329232154,1718191874809,-150.0,0.00021835,2]
[329232155,1718191874820,-150.0,0.00021844,2]
[329232156,1718191874831,-150.0,0.00021845,2]
[329232157,1718191874843,-150.0,0.00021848,2]
[329232158,1718191874856,-150.0,0.00021854,2]
[329232159,1718191874867,-162.209985,0.00021856,2]
[329232160,1718191874878,-888.671148,0.00021856,2]
[329232161,1718191874889,-1160.562732,0.00021856,2]
[329232162,1718191874899,-2174.470954,0.00021856,2]
[329232163,1718191874911,-191.308221,0.00021856,2]
[329232164,1718191874922,-607.088696,0.00021856,2]
[329232165,1718191874932,-181.582473,0.00021856,2]
[329232166,1718191874942,-3527.906878,0.00021856,2]
[329232167,1718191874955,-2428.354783,0.00021856,2]
[329232168,1718191874965,-150.0,0.00021862,2]
[329232169,1718191874976,-150.0,0.00021862,2]
[329232170,1718191874986,-150.0,0.00021866,2]
[329232171,1718191874997,-150.0,0.00021874,2]
[329232172,1718191875008,-150.0,0.00021874,2]
[329232173,1718191875019,-150.0,0.00021874,2]
[329232174,1718191875030,-150.0,0.00021876,2]
[329232175,1718191875041,-1500.0,0.00021876,2]
[329232176,1718191875053,-150.0,0.00021881,2]
[329232177,1718191875064,-150.0,0.00021884,2]
[329232178,1718191875076,-150.0,0.000219,2]
[329232179,1718191875086,-1000.0,0.000219,2]
[329232180,1718191875096,-1018.41,0.00021915,2]
[329232181,1718191875107,-579.55,0.00021915,2]
[329232182,1718191875118,-500.0,0.00021915,2]
[329232183,1718191875128,-569.48,0.00021915,2]
[329232184,1718191875139,-500.0,0.00021915,2]
[329232185,1718191875150,-1114.44,0.00021915,2]
[329232186,1718191875165,-500.0,0.00021915,2]
[329232187,1718191875175,-500.0,0.00021915,2]
[329232188,1718191875189,-906.12,0.00021915,2]
[329232189,1718191875202,-500.0,0.00021915,2]
[329232190,1718191875213,-615.56,0.00021915,2]
[329232191,1718191875223,-2673.62,0.00021915,2]
[329232192,1718191875235,-570.29,0.00021916,2]
[329232193,1718191875245,-1063.22,0.00021916,2]
[329232194,1718191875256,-789.87,0.00021916,2]
[329232195,1718191875267,-1095.74,0.00021916,2]
[329232196,1718191875278,-505.76,0.00021916,2]
[329232197,1718191875290,-500.0,0.00021916,2]
[329232198,1718191875301,-2101.54,0.00021916,2]
[329232199,1718191875312,-811.23,0.00021916,2]
[329232200,1718191875324,-760.02,0.00021916,2]
[329232201,1718191875336,-594.76,0.00021916,2]
[329232202,1718191875347,-500.0,0.00021916,2]
[329232203,1718191875382,-500.0,0.00021916,2]
[329232204,1718191875394,-770.31,0.00021916,2]
[329232205,1718191875405,-865.1,0.00021916,2]
[329232206,1718191875415,-1731.15,0.00021916,2]
[329232207,1718191875428,-1365.74,0.00021916,2]
[329232208,1718191875441,-500.0,0.00021916,2]
[329232209,1718191875450,-742.33,0.00021916,2]
[329232210,1718191875460,-1530.05,0.00021917,2]
[329232211,1718191875471,-500.0,0.00021917,2]
[329232212,1718191875481,-200.0,0.00021917,2]
[329232213,1718191875490,-200.0,0.00021917,2]
[329232214,1718191875501,-200.0,0.00021917,2]
[329232215,1718191875511,-200.0,0.00021917,2]
[329232216,1718191875521,-200.0,0.00021917,2]
[329232217,1718191875532,-200.0,0.00021917,2]
[329232218,1718191875543,-200.0,0.00021917,2]
[329232219,1718191875555,-200.0,0.00021917,2]
[329232220,1718191875566,-200.0,0.00021917,2]
[329232221,1718191875576,-200.0,0.00021917,2]
[329232222,1718191875589,-200.0,0.00021917,2]
[329232223,1718191875599,-200.0,0.00021917,2]
[329232224,1718191875611,-335.57908201,0.00021917,2]
[329232225,1718191875621,-776.13,0.00021917,2]
[329232226,1718191875632,-533.84,0.00021917,2]
[329232227,1718191875642,-500.0,0.00021917,2]
[329232228,1718191875653,-500.0,0.00021917,2]
[329232229,1718191875663,-500.0,0.00021917,2]
[329232230,1718191875676,-500.0,0.00021917,2]
[329232231,1718191875688,-500.0,0.00021917,2]
[329232232,1718191875700,-500.0,0.00021917,2]
[329232233,1718191875711,-159.40342451,0.00021917,2]
[329232234,1718191875722,-512.57,0.00021917,2]
[329232235,1718191875733,-588.83,0.00021917,2]
[329232236,1718191875744,-500.0,0.00021917,2]
[329232237,1718191875754,-500.0,0.00021917,2]
[329232238,1718191875766,-651.23,0.00021917,2]
[329232239,1718191875777,-727.91,0.00021917,2]
[329232240,1718191875787,-500.0,0.00021917,2]
[329232241,1718191875799,-500.0,0.00021917,2]
[329232242,1718191875811,-500.0,0.00021917,2]
[329232243,1718191875822,-588.04,0.00021917,2]
[329232244,1718191875833,-544.64,0.00021917,2]
[329232245,1718191875845,-1242.63,0.00021917,2]
[329232246,1718191875856,-1281.97,0.00021917,2]
[329232247,1718191875868,-2260.06,0.00021917,2]
[329232248,1718191875879,-500.0,0.00021917,2]
[329232249,1718191875890,-500.0,0.00021917,2]
[329232250,1718191875901,-397.22,0.00021918,2]
[329232251,1718191875911,-250.0,0.00021918,2]
[329232252,1718191875921,-1455.41,0.00021918,2]
[329232253,1718191875932,-151.482665,0.00021918,2]
[329232254,1718191875943,-151.0,0.00021918,2]
[329232255,1718191875955,-162.953104,0.00021918,2]
[329232256,1718191875967,-1544.36,0.0002192,2]
[329232257,1718191875978,-1544.36,0.0002192,2]
[329232258,1718191875990,-150.0,0.00021929,2]
[329232259,1718191876001,-150.0,0.00021941,2]
[329232260,1718191876012,-150.0,0.00021947,2]
[329232261,1718191876022,-150.0,0.00021948,2]
[329232262,1718191876034,-150.0,0.00021954,2]
[329232263,1718191876047,-486.93330912,0.00021978,2]
[329232264,1718191876058,-300.79275145,0.00021985,2]
[329232265,1718191876069,-2000.0,0.00022,2]
[329232266,1718191876080,-30000.0,0.00022,2]
[329232267,1718191876093,-678.11629683,0.00022,5]
[329232268,1718191876103,-4895.27,0.00022,2]
[329232269,1718191876114,-1000.0,0.00022,3]
[329232270,1718191876126,-791.01559774,0.00022,2]
[329232271,1718191876137,-240.6183288,0.00022,2]
[329232272,1718191876149,-1062.80857037,0.00022,2]
[329232273,1718191876164,-18220.05,0.00022,2]
[329232274,1718191876177,-534.1745,0.00022,2]
[329232275,1718191876188,-150.0,0.00022,3]
[329232276,1718191876200,-156.58976414,0.00022052,10]
[329232277,1718191876214,-1018.41,0.00022052,2]
[329232278,1718191876228,-579.55,0.00022052,2]
[329232279,1718191876241,-500.0,0.00022052,2]
[329232280,1718191876253,-569.48,0.00022052,2]
[329232281,1718191876265,-500.0,0.00022052,2]
[329232282,1718191876276,-1114.44,0.00022052,2]
[329232283,1718191876287,-7587.97,0.00022052,2]
[329232284,1718191876299,-500.0,0.00022052,2]
[329232285,1718191876310,-500.0,0.00022052,2]
[329232286,1718191876321,-906.12,0.00022052,2]
[329232287,1718191876332,-500.0,0.00022052,2]
[329232288,1718191876344,-615.56,0.00022052,2]
[329232289,1718191876369,-2673.62,0.00022052,2]
[329232290,1718191876385,-164944.61677559,0.00022053,2]
[329232291,1718191876396,-151.0,0.00022053,7]
[329232292,1718191876407,-570.29,0.00022053,2]
[329232293,1718191876420,-276.247366,0.00022053,7]
[329232294,1718191876431,-1063.22,0.00022053,2]
[329232295,1718191876442,-789.87,0.00022053,2]
[329232296,1718191876452,-1095.74,0.00022053,2]
[329232297,1718191876464,-500.0,0.00022053,2]
[329232298,1718191876476,-2101.54,0.00022053,2]
[329232299,1718191876488,-811.23,0.00022053,2]
[329232300,1718191876499,-760.02,0.00022053,2]
[329232301,1718191876510,-594.76,0.00022053,2]
[329232302,1718191876521,-578.59235999,0.00022053,2]
[329232303,1718191876533,-387.86394485,0.00022053,2]
[329232304,1718191876544,-770.31,0.00022053,2]
[329232305,1718191876556,-865.1,0.00022053,2]
[329232306,1718191876567,-1731.15,0.00022053,2]
[329232307,1718191876578,-288.683728,0.00022053,7]
[329232308,1718191876590,-1365.74,0.00022053,2]
[329232309,1718191876601,-500.0,0.00022053,2]
[329232310,1718191876612,-742.33,0.00022053,2]
[329232311,1718191876623,-1530.05,0.00022054,2]
[329232312,1718191876635,-500.0,0.00022054,2]
[329232313,1718191876645,-776.13,0.00022054,2]
[329232314,1718191876656,-533.84,0.00022054,2]
[329232315,1718191876667,-512.57,0.00022054,2]
[329232316,1718191876678,-588.83,0.00022054,2]
[329232317,1718191876689,-500.0,0.00022054,2]
[329232318,1718191876701,-651.23,0.00022054,2]
[329232319,1718191876713,-393.54,0.00022054,2]
[329232320,1718191876724,-727.91,0.00022054,2]
[329232321,1718191876739,-500.0,0.00022054,2]
[329232322,1718191876752,-628.64619635,0.00022054,2]
[329232323,1718191876765,-500.0,0.00022054,2]
[329232324,1718191876777,-588.04,0.00022054,2]
[329232325,1718191876788,-544.64,0.00022054,2]
[329232326,1718191876800,-1242.63,0.00022054,2]
[329232327,1718191876812,-1281.97,0.00022054,2]
[329232328,1718191876824,-2260.06,0.00022054,2]
[329232329,1718191876836,-500.0,0.00022054,2]
[329232330,1718191876849,-500.0,0.00022054,2]
[329232331,1718191876863,-2000.0,0.000221,2]
[329232332,1718191876874,-225.66586826,0.0002211,2]
[329232333,1718191876887,-151.0,0.00022118,2]
[329232334,1718191876902,-888.671148,0.00022122,2]
[329232335,1718191876914,-1160.562732,0.00022122,2]
[329232336,1718191876926,-2174.470954,0.00022122,2]
[329232337,1718191876937,-191.308221,0.00022122,2]
[329232338,1718191876949,-607.088696,0.00022122,2]
[329232339,1718191876960,-3527.906878,0.00022122,2]
[329232340,1718191876972,-2428.354783,0.00022122,2]
[329232341,1718191876982,-150.0,0.00022153,2]
[329232342,1718191876994,-300.0,0.00022153,2]
[329232343,1718191877005,-150.0,0.00022153,2]
[329232344,1718191877016,-151.38,0.00022153,2]
[329232345,1718191877028,-1018.41,0.00022189,2]
[329232346,1718191877039,-579.55,0.00022189,2]
[329232347,1718191877050,-500.0,0.00022189,2]
[329232348,1718191877061,-569.48,0.00022189,2]
[329232349,1718191877074,-500.0,0.00022189,2]
[329232350,1718191877085,-1114.44,0.00022189,2]
[329232351,1718191877096,-500.0,0.00022189,2]
[329232352,1718191877108,-500.0,0.00022189,2]
[329232353,1718191877120,-906.12,0.00022189,2]
[329232354,1718191877130,-326.50026362,0.00022189,2]
[329232355,1718191877141,-615.56,0.00022189,2]
[329232356,1718191877157,-2673.62,0.00022189,2]
[329232357,1718191877168,-570.29,0.0002219,2]
[329232358,1718191877179,-1063.22,0.0002219,2]
[329232359,1718191877191,-789.87,0.0002219,2]
[329232360,1718191877202,-1095.74,0.0002219,2]
[329232361,1718191877214,-500.0,0.0002219,2]
[329232362,1718191877225,-2101.54,0.0002219,2]
[329232363,1718191877237,-811.23,0.0002219,2]
[329232364,1718191877249,-760.02,0.0002219,2]
[329232365,1718191877264,-594.76,0.0002219,2]
[329232366,1718191877276,-770.31,0.0002219,2]
[329232367,1718191877288,-865.1,0.0002219,2]
[329232368,1718191877299,-7587.97,0.0002219,2]
[329232369,1718191877312,-1731.15,0.0002219,2]
[329232370,1718191877324,-1365.74,0.0002219,2]
[329232371,1718191877335,-376.3429709,0.0002219,2]
[329232372,1718191877347,-742.33,0.0002219,2]
[329232373,1718191877390,-1530.05,0.00022191,2]
[329232374,1718191877403,-500.0,0.00022191,2]
[329232375,1718191877417,-776.13,0.00022191,2]
[329232376,1718191877428,-533.84,0.00022191,2]
[329232377,1718191877440,-512.57,0.00022191,2]
[329232378,1718191877452,-588.83,0.00022191,2]
[329232379,1718191877464,-500.0,0.00022191,2]
[329232380,1718191877476,-651.23,0.00022191,2]
[329232381,1718191877489,-500.0,0.00022191,2]
[329232382,1718191877501,-727.91,0.00022191,2]
[329232383,1718191877513,-500.0,0.00022191,2]
[329232384,1718191877525,-588.04,0.00022191,2]
[329232385,1718191877537,-544.64,0.00022191,2]
[329232386,1718191877549,-1242.63,0.00022191,2]
[329232387,1718191877561,-1281.97,0.00022191,2]
[329232388,1718191877572,-2260.06,0.00022191,2]
[329232389,1718191877583,-500.0,0.00022191,2]
[329232390,1718191877595,-500.0,0.00022191,2]
[329232391,1718191877607,-1602.61345,0.000222,2]
[329232392,1718191877621,-150.0,0.000222,3]
[329232393,1718191877639,-501.17,0.0002226,2]
[329232394,1718191877651,-216.0,0.00022318,2]
[329232395,1718191877664,-1018.41,0.00022326,2]
[329232396,1718191877675,-579.55,0.00022326,2]
[329232397,1718191877687,-334.66190313,0.00022326,2]
[329232398,1718191877698,-569.48,0.00022326,2]
[329232399,1718191877710,-500.0,0.00022326,2]
[329232400,1718191877720,-1114.44,0.00022326,2]
[329232401,1718191877731,-500.0,0.00022326,2]
[329232402,1718191877742,-500.0,0.00022326,2]
[329232403,1718191877754,-906.12,0.00022326,2]
[329232404,1718191877765,-615.56,0.00022326,2]
[329232405,1718191877776,-2673.62,0.00022326,2]
[329232406,1718191877787,-570.29,0.00022327,2]
[329232407,1718191877801,-1063.22,0.00022327,2]
[329232408,1718191877813,-789.87,0.00022327,2]
[329232409,1718191877824,-1095.74,0.00022327,2]
[329232410,1718191877836,-500.0,0.00022327,2]
[329232411,1718191877848,-2101.54,0.00022327,2]
[329232412,1718191877861,-811.23,0.00022327,2]
[329232413,1718191877873,-760.02,0.00022327,2]
[329232414,1718191877885,-594.76,0.00022327,2]
[329232415,1718191877898,-770.31,0.00022327,2]
[329232416,1718191877909,-865.1,0.00022327,2]
[329232417,1718191877921,-1731.15,0.00022327,2]
[329232418,1718191877933,-1365.74,0.00022327,2]
[329232419,1718191877945,-742.33,0.00022327,2]
[329232420,1718191877957,-1530.05,0.00022328,2]
[329232421,1718191877969,-500.0,0.00022328,2]
[329232422,1718191877980,-776.13,0.00022328,2]
[329232423,1718191877991,-533.84,0.00022328,2]
[329232424,1718191878003,-512.57,0.00022328,2]
[329232425,1718191878014,-588.83,0.00022328,2]
[329232426,1718191878024,-500.0,0.00022328,2]
[329232427,1718191878038,-651.23,0.00022328,2]
[329232428,1718191878052,-500.0,0.00022328,2]
[329232429,1718191878064,-727.91,0.00022328,2]
[329232430,1718191878076,-500.0,0.00022328,2]
[329232431,1718191878088,-588.04,0.00022328,2]
[329232432,1718191878100,-544.64,0.00022328,2]
[329232433,1718191878115,-1242.63,0.00022328,2]
[329232434,1718191878127,-1281.97,0.00022328,2]
[329232435,1718191878140,-2260.06,0.00022328,2]
[329232436,1718191878153,-500.0,0.00022328,2]
[329232437,1718191878165,-500.0,0.00022328,2]
[329232438,1718191878178,-162.209985,0.00022389,2]
[329232439,1718191878189,-888.671148,0.00022389,2]
[329232440,1718191878204,-1160.562732,0.00022389,2]
[329232441,1718191878215,-2174.470954,0.00022389,2]
[329232442,1718191878229,-191.308221,0.00022389,2]
[329232443,1718191878241,-607.088696,0.00022389,2]
[329232444,1718191878256,-181.582473,0.00022389,2]
[329232445,1718191878271,-3527.906878,0.00022389,2]
[329232446,1718191878286,-2428.354783,0.00022389,2]
[329232447,1718191878317,-175.80696,0.00022389,2]
[329232448,1718191878338,-182.513586,0.00022389,2]
[329232449,1718191878386,-1018.41,0.00022463,2]
[329232450,1718191878401,-579.55,0.00022463,2]
[329232451,1718191878414,-569.48,0.00022463,2]
[329232452,1718191878430,-500.0,0.00022463,2]
[329232453,1718191878447,-1114.44,0.00022463,2]
[329232454,1718191878459,-500.0,0.00022463,2]
[329232455,1718191878484,-500.0,0.00022463,2]
[329232456,1718191878497,-906.12,0.00022463,2]
[329232457,1718191878510,-615.56,0.00022463,2]
[329232458,1718191878524,-2673.62,0.00022463,2]
[329232459,1718191878536,-570.29,0.00022464,2]
[329232460,1718191878548,-1063.22,0.00022464,2]
[329232461,1718191878560,-789.87,0.00022464,2]
[329232462,1718191878573,-1095.74,0.00022464,2]
[329232463,1718191878588,-500.0,0.00022464,2]
[329232464,1718191878605,-2101.54,0.00022464,2]
[329232465,1718191878619,-811.23,0.00022464,2]
[329232466,1718191878632,-760.02,0.00022464,2]
[329232467,1718191878647,-594.76,0.00022464,2]
[329232468,1718191878667,-770.31,0.00022464,2]
[329232469,1718191878680,-865.1,0.00022464,2]
[329232470,1718191878694,-1731.15,0.00022464,2]
[329232471,1718191878707,-1365.74,0.00022464,2]
[329232472,1718191878719,-742.33,0.00022464,2]
[329232473,1718191878731,-1530.05,0.00022465,2]
[329232474,1718191878744,-500.0,0.00022465,2]
[329232475,1718191878757,-776.13,0.00022465,2]
[329232476,1718191878769,-533.84,0.00022465,2]
[329232477,1718191878782,-512.57,0.00022465,2]
[329232478,1718191878794,-588.83,0.00022465,2]
[329232479,1718191878807,-617.26,0.00022465,2]
[329232480,1718191879109,-651.23,0.00022465,2]
[329232481,1718191879130,-727.91,0.00022465,2]
[329232482,1718191879146,-500.0,0.00022465,2]
[329232483,1718191879160,-500.0,0.00022465,2]
[329232484,1718191879172,-588.04,0.00022465,2]
[329232485,1718191879183,-544.64,0.00022465,2]
[329232486,1718191879195,-1242.63,0.00022465,2]
[329232487,1718191879207,-1281.97,0.00022465,2]
[329232488,1718191879217,-2260.06,0.00022465,2]
[329232489,1718191879228,-500.0,0.00022465,2]
[329232490,1718191879241,-500.0,0.00022465,2]
[329232491,1718191879252,-784.0,0.00022491,2]
[329232492,1718191879264,-22552.97189234,0.000225,2]
[329232493,1718191879276,-150.0,0.000225,3]
[329232494,1718191879287,-2086.09821987,0.0002252,3]
[329232495,1718191879298,-960.53440708,0.00022544,2]
[329232496,1718191879309,-489.0,0.000226,5]
[329232497,1718191879321,-3058.0,0.000226,2]
[329232498,1718191879333,-190.0,0.000226,5]
[329232499,1718191879346,-1018.41,0.000226,2]
[329232500,1718191879357,-579.55,0.000226,2]
[329232501,1718191879395,-569.48,0.000226,2]
[329232502,1718191879410,-483.78506373,0.000226,2]
[329232503,1718191879422,-1114.44,0.000226,2]
[329232504,1718191879434,-500.0,0.000226,2]
[329232505,1718191879446,-429.10965933,0.000226,2]
[329232506,1718191879459,-906.12,0.000226,2]
[329232507,1718191879471,-615.56,0.000226,2]
[329232508,1718191879482,-2673.62,0.000226,2]
[329232509,1718191879493,-570.29,0.00022601,2]
[329232510,1718191879503,-1063.22,0.00022601,2]
[329232511,1718191879514,-789.87,0.00022601,2]
[329232512,1718191879526,-1095.74,0.00022601,2]
[329232513,1718191879538,-161.45572177,0.00022601,2]
[329232514,1718191879549,-2101.54,0.00022601,2]
[329232515,1718191879559,-811.23,0.00022601,2]
[329232516,1718191879572,-760.02,0.00022601,2]
[329232517,1718191879584,-594.76,0.00022601,2]
[329232518,1718191879594,-770.31,0.00022601,2]
[329232519,1718191879607,-865.1,0.00022601,2]
[329232520,1718191879618,-1731.15,0.00022601,2]
[329232521,1718191879630,-1365.74,0.00022601,2]
[329232522,1718191879642,-742.33,0.00022601,2]
[329232523,1718191879652,-1530.05,0.00022602,2]
[329232524,1718191879664,-244.15262585,0.00022602,2]
[329232525,1718191879674,-776.13,0.00022602,2]
[329232526,1718191879685,-533.84,0.00022602,2]
[329232527,1718191879697,-512.57,0.00022602,2]
[329232528,1718191879707,-588.83,0.00022602,2]
[329232529,1718191879719,-651.23,0.00022602,2]
[329232530,1718191879731,-644.43282675,0.00022602,2]
[329232531,1718191879742,-727.91,0.00022602,2]
[329232532,1718191879753,-513.83619977,0.00022602,2]
[329232533,1718191879764,-588.04,0.00022602,2]
[329232534,1718191879775,-544.64,0.00022602,2]
[329232535,1718191879786,-1242.63,0.00022602,2]
[329232536,1718191879797,-1281.97,0.00022602,2]
[329232537,1718191879808,-2260.06,0.00022602,2]
[329232538,1718191879818,-415.78125709,0.00022602,2]
[329232539,1718191879830,-243.14422349,0.00022602,2]
[329232540,1718191879842,-221.0,0.0002261,2]
[329232541,1718191879855,-151.0,0.00022645,2]
[329232542,1718191879867,-538.03,0.00022661,2]
[329232543,1718191879879,-155.0,0.000227,2]
[329232544,1718191879891,-150.0,0.000227,3]
[329232545,1718191879902,-150.0,0.00022701,2]
[329232546,1718191879916,-150.0,0.00022701,2]
[329232547,1718191879929,-150.0,0.00022701,2]
[329232548,1718191879944,-150.0,0.00022701,2]
[329232549,1718191879957,-150.0,0.00022701,2]
[329232550,1718191879975,-1018.41,0.00022737,2]
[329232551,1718191879989,-579.55,0.00022737,2]
[329232552,1718191880000,-569.48,0.00022737,2]
[329232553,1718191880013,-1114.44,0.00022737,2]
[329232554,1718191880028,-338.47514566,0.00022737,2]
[329232555,1718191880040,-906.12,0.00022737,2]
[329232556,1718191880052,-615.56,0.00022737,2]
[329232557,1718191880066,-2673.62,0.00022737,2]
[329232558,1718191880077,-570.3753453,0.00022738,2]
[329232559,1718191880088,-1063.45990804,0.00022738,2]
[329232560,1718191880099,-790.08803277,0.00022738,2]
[329232561,1718191880111,-1095.92443527,0.00022738,2]
[329232562,1718191880122,-2101.6473,0.00022738,2]
[329232563,1718191880137,-811.46960913,0.00022738,2]
[329232564,1718191880153,-760.11943682,0.00022738,2]
[329232565,1718191880167,-594.85690431,0.00022738,2]
[329232566,1718191880179,-770.4398638,0.00022738,2]
[329232567,1718191880193,-865.30576588,0.00022738,2]
[329232568,1718191880204,-1731.38880644,0.00022738,2]
[329232569,1718191880216,-1365.83249503,0.00022738,2]
[329232570,1718191880229,-742.36961904,0.00022738,2]
[329232571,1718191880241,-1530.05,0.00022739,2]
[329232572,1718191880252,-776.13,0.00022739,2]
[329232573,1718191880265,-533.84,0.00022739,2]
[329232574,1718191880276,-512.70275405,0.00022739,2]
[329232575,1718191880287,-588.86988359,0.00022739,2]
[329232576,1718191880300,-651.23,0.00022739,2]
[329232577,1718191880311,-727.94259427,0.00022739,2]